fUSD/lending_fUSD_20251013
["ID","MTS","AMOUNT","RATE_DAILY","PERIOD"]
[391132715,1760383844193,-150.0,0.00026529,4]
[391132717,1760383844202,-549.0,0.00026625,7]
[391132719,1760383844211,-150.0,0.0002665,4]
[391132721,1760383844220,-933.25,0.00026714,30]
[391132723,1760383844230,-150.0,0.0002675,4]
[391132725,1760383844240,-668.52,0.00026863,2]
[391132727,1760383844249,-150.0,0.00026911,4]
[391132729,1760383844258,-150.0,0.00026971,4]
[391132731,1760383844267,-1317.79598455,0.00027,5]
[391132733,1760383844276,-150.0,0.00027015,4]
[391132735,1760383844286,-150.0,0.00027172,4]
[391132737,1760383844295,-755.0,0.00027177,7]
[391132739,1760383844304,-150.0,0.00027192,4]
[391132741,1760383844314,-272.0,0.00027318,7]
[391132743,1760383844325,-272.0,0.00027319,2]
[391132745,1760383844335,-272.0,0.00027327,2]
[391132747,1760383844344,-1075.0,0.00027352,2]
[391132749,1760383844353,-755.0,0.00027353,2]
[391132751,1760383844362,-500.0,0.00027381,7]
[391132753,1760383844371,-500.0,0.00027381,7]
[391132755,1760383844381,-500.0,0.00027381,7]
[391132757,1760383844390,-500.0,0.00027381,7]
[391132760,1760383844402,-500.0,0.00027381,7]
[391132762,1760383844415,-500.0,0.00027381,7]
[391132764,1760383844424,-500.0,0.00027381,7]
[391132766,1760383844433,-500.0,0.00027381,7]
[391132768,1760383844444,-500.0,0.00027381,7]
[391132770,1760383844454,-500.0,0.00027381,7]
[391132772,1760383844463,-500.0,0.00027381,7]
[391132774,1760383844473,-214.36,0.00027381,7]
[391132776,1760383844482,-500.0,0.00027381,7]
[391132778,1760383844492,-272.0,0.00027404,2]
[391132780,1760383844502,-150.0,0.00027413,7]
[391132782,1760383844512,-272.0,0.00027415,2]
[391132784,1760383844521,-150.0,0.00027433,7]
[391132786,1760383844530,-248.47826048,0.00027498,7]
[391132788,1760383844539,-223.63043429,0.00027498,7]
[391132790,1760383844548,-285.74999937,0.00027498,7]
[391132792,1760383844558,-953.17867211,0.00027529,2]
[391132794,1760383844567,-152.66,0.00027529,2]
[391132796,1760383844576,-516.59,0.00027535,2]
[391132798,1760383844585,-528.14,0.00027535,2]
[391132800,1760383844594,-755.0,0.0002755,2]
[391132802,1760383844603,-18827.7978346,0.0002758,3]
[391132804,1760383844612,-668.52,0.00027589,2]
[391132806,1760383844621,-250.0,0.00027589,7]
[391132808,1760383844631,-5000.0,0.00027589,2]
[391132810,1760383844639,-150.0,0.0002759,7]
[391132812,1760383844649,-150.0,0.00027634,7]
[391132814,1760383844658,-272.0,0.00027659,2]
[391132816,1760383844667,-150.0,0.00027695,7]
[391132818,1760383844676,-272.0,0.0002775,7]
[391132820,1760383844685,-400.0,0.000278,10]
[391132822,1760383844694,-250.86,0.00027825,2]
[391132824,1760383844703,-150.0,0.00027855,7]
[391132826,1760383844713,-15668.6685514,0.0002789,3]
[391132828,1760383844722,-800.0,0.000279,10]
[391132830,1760383844731,-410.00000002,0.0002794,2]
[391132832,1760383844740,-150.0,0.00027956,7]
[391132834,1760383844750,-522.8,0.00027988,2]
[391132836,1760383844759,-272.0,0.00028049,2]
[391132838,1760383844768,-168.0,0.00028075,2]
[391132840,1760383844777,-150.0,0.00028077,7]
[391132842,1760383844786,-2247.884,0.00028107,2]
[391132844,1760383844795,-1000.0,0.00028107,2]
[391132846,1760383844805,-1000.0,0.00028107,2]
[391132848,1760383844814,-175.31108874,0.00028134,2]
[391132850,1760383844823,-476.52634212,0.00028135,2]
[391132852,1760383844832,-476.52634212,0.00028151,2]
[391132854,1760383844841,-150.0,0.00028165,7]
[391132855,1760383844851,-3083.2380457,0.00028177,2]
[391132858,1760383844861,-33086.61018345,0.00028182,2]
[391132860,1760383844870,-262.13030039,0.00028184,2]
[391132862,1760383844879,-151.47,0.00028184,2]
[391132864,1760383844888,-515.18,0.00028186,2]
[391132866,1760383844899,-33086.61018345,0.00028186,2]
[391132868,1760383844908,-5000.0,0.00028189,2]
[391132870,1760383844917,-1045.7333,0.00028189,2]
[391132872,1760383844926,-178.30557335,0.00028189,2]
[391132874,1760383844935,-476.52634212,0.0002819,2]
[391132876,1760383844944,-1977.02760323,0.00028193,2]
[391132878,1760383844953,-18827.7978346,0.00028197,3]
[391132880,1760383844963,-31337.3371028,0.00028197,3]
[391132882,1760383844971,-2177.66119407,0.00028199,2]
[391132884,1760383844980,-168.43808448,0.000282,2]
[391132886,1760383844990,-440.70791896,0.000282,2]
[391132888,1760383844999,-200.0,0.000282,3]
[391132890,1760383845008,-300.0,0.000282,2]
[391132892,1760383845017,-33086.61018345,0.00028206,2]
[391132893,1760383845026,-46155.59621821,0.00028207,2]
[391132896,1760383845035,-39150.08275427,0.00028214,2]
[391132898,1760383845046,-225.6261432,0.00028214,2]
[391132900,1760383845055,-645.57257,0.00028214,2]
[391132902,1760383845064,-150.0,0.00028217,7]
[391132903,1760383845074,-342731.29093494,0.0002822,2]
[391132905,1760383845083,-1435.8754465,0.00028223,2]
[391132908,1760383845093,-157.99104199,0.00028224,2]
[391132910,1760383845103,-168.43808448,0.00028227,2]
[391132912,1760383845112,-342731.29093494,0.0002823,2]
[391132914,1760383845121,-26892.43686764,0.00028231,2]
[391132916,1760383845131,-10062.77424305,0.00028233,2]
[391132918,1760383845140,-2177.66119407,0.00028233,2]
[391132920,1760383845149,-168.43808448,0.00028234,2]
[391132922,1760383845159,-1977.02760323,0.00028234,2]
[391132924,1760383845168,-52067.44702235,0.0002824,2]
[391132926,1760383845177,-52067.44702235,0.0002824,2]
[391132927,1760383845186,-3424.25300349,0.0002824,2]
[391132930,1760383845196,-584.3702958,0.00028242,2]
[391132932,1760383845205,-3424.25300349,0.00028243,2]
[391132934,1760383845215,-342731.29093494,0.00028246,2]
[391132936,1760383845224,-10062.77424305,0.00028248,2]
[391132938,1760383845233,-1977.02760323,0.00028248,2]
[391132940,1760383845244,-76026.80660352,0.00028255,2]
[391132942,1760383845253,-584.3702958,0.0002826,2]
[391132944,1760383845263,-9137.96942788,0.00028262,2]
[391132945,1760383845272,-11290.60604137,0.00028267,2]
[391132947,1760383845282,-175.31108874,0.00028268,2]
[391132950,1760383845291,-158.05476268,0.00028269,2]
[391132952,1760383845301,-207.0,0.00028269,120]
[391132953,1760383845310,-500.0,0.00028273,5]
[391132955,1760383845319,-160.48219396,0.00028273,5]
[391132956,1760383845328,-501.49056779,0.00028273,5]
[391132957,1760383845338,-500.0,0.00028273,5]
[391132958,1760383845347,-500.0,0.00028273,5]
[391132959,1760383845357,-188277.978346,0.00028279,3]
[391132960,1760383845367,-78089.3446891,0.00028279,3]
[391133150,1760383847100,-169.2196074,0.00028234,2]
[391133152,1760383847109,-169.2196074,0.0002826,2]
[391133154,1760383847118,-169.2196074,0.00028269,2]
[391133156,1760383847127,-4516.95345357,0.00028279,3]
[391133158,1760383847139,-764.72667811,0.00028279,3]
[391133161,1760383847152,-8326.80419968,0.00028279,3]
[391133163,1760383847164,-2080.35645323,0.00028279,3]
[391133165,1760383847175,-722.66456196,0.00028279,3]
[391133167,1760383847186,-5053.72190793,0.00028279,3]
[391133317,1760383861568,2000.0,0.00023959,120]
[391133318,1760383861701,2000.0,0.00023356,120]
[391133319,1760383861823,1032.43558728,0.00024958,120]
[391133321,1760383960869,192.0,0.00026402,120]
[391133322,1760384009070,3057.124556,0.00027,120]
[391133386,1760385032384,-284.47,0.00013699,2]
[391133388,1760385032393,-720.75235336,0.00013933,2]
[391133390,1760385032404,-1779.24764664,0.00013933,2]
[391133392,1760385032413,-806.11842604,0.00014162,2]
[391133394,1760385032422,-474.674134,0.00014813,2]
[391133396,1760385032431,-2500.0,0.00014887,2]
[391133398,1760385032440,-2500.0,0.00015073,2]
[391133400,1760385032451,-250.0,0.00017,2]
[391133402,1760385032460,-2342.26068254,0.00017507,2]
[391133404,1760385032469,-475.32661018,0.00017596,2]
[391133406,1760385032479,-164.39578206,0.00018,2]
[391133407,1760385032491,-164.39578206,0.000182,2]
[391133408,1760385032501,-284.47,0.00020187,2]
[391133409,1760385032512,-200.0,0.00020987,2]
[391133410,1760385032522,-195.0,0.00020999,2]
[391133411,1760385032534,-19707.44264128,0.00021,2]
[391133412,1760385032544,-2543.82982495,0.00022007,2]
[391133413,1760385032555,-1317.14930541,0.00022427,2]
[391133414,1760385032565,-192.0,0.00023468,2]
[391133415,1760385032575,-1637.656,0.00024426,7]
[391133416,1760385032586,-500.0,0.00024932,2]
[391133417,1760385032595,-273.0,0.00024932,7]
[391133419,1760385032604,-273.0,0.00025,7]
[391133420,1760385032614,-265.37,0.0002512,2]
[391133421,1760385032623,-1000.0,0.000252,2]
[391133422,1760385032632,-666.0,0.00025508,3]
[391133423,1760385032641,-160.65,0.00025551,2]
[391133424,1760385032650,-1000.0,0.00025655,2]
[391133426,1760385032659,-250.0,0.00025682,2]
[391133428,1760385032668,-400.0,0.0002578,2]
[391133430,1760385032677,-273.0,0.0002589,7]
[391133432,1760385032687,-150.0,0.00025989,2]
[391133434,1760385032697,-150.0,0.00025989,2]
[391133436,1760385032707,-150.0,0.00025989,2]
[391133438,1760385032716,-150.0,0.00025989,2]
[391133440,1760385032726,-708.23197852,0.00026216,2]
[391133442,1760385032735,-1000.0,0.00026516,2]
[391133444,1760385032744,-284.47,0.00026676,2]
[391133446,1760385032754,-1000.0,0.00026733,2]
[391133448,1760385032763,-152.0,0.00026737,3]
[391133450,1760385032773,-273.0,0.00027185,7]
[391133452,1760385032786,-1000.0,0.00027229,2]
[391133454,1760385032796,-363.30527104,0.00027261,2]
[391133456,1760385032805,-714.88400408,0.0002742,2]
[391133458,1760385032814,-150.0,0.00027433,7]
[391133460,1760385032823,-295.76829449,0.00027498,7]
[391133462,1760385032836,-221.82622087,0.00027498,7]
[391133464,1760385032845,-369.71036812,0.00027498,7]
[391133466,1760385032856,-221.82622087,0.00027498,7]
[391133468,1760385032865,-246.47357875,0.00027498,7]
[391133470,1760385032874,-271.12093662,0.00027498,7]
[391133472,1760385032884,-295.7682945,0.00027498,7]
[391133474,1760385032893,-320.41565237,0.00027498,7]
[391133476,1760385032902,-345.06301025,0.00027498,7]
[391133478,1760385032912,-369.71036812,0.00027498,7]
[391133480,1760385032921,-152.0,0.00027609,4]
[391133481,1760385032930,-300.0,0.000278,10]
[391133483,1760385032940,-700.0,0.000279,10]
[391133486,1760385032950,-1000.0,0.00027903,2]
[391133488,1760385032960,-528.46275044,0.00028035,2]
[391133490,1760385032969,-876.96472475,0.00028063,2]
[391133492,1760385032978,-200.0,0.00028098,2]
[391133494,1760385032987,-200.0,0.00028153,2]
[391133496,1760385032996,-2231.99676218,0.00028179,2]
[391133498,1760385033006,-500.0,0.00028188,2]
[391133500,1760385033015,-500.0,0.00028188,2]
[391133502,1760385033024,-500.0,0.00028188,2]
[391133504,1760385033033,-500.0,0.00028188,2]
[391133506,1760385033042,-416.05548173,0.00028188,2]
[391133508,1760385033052,-500.0,0.00028188,2]
[391133510,1760385033060,-178.92588708,0.00028188,2]
[391133512,1760385033071,-500.0,0.00028188,2]
[391133514,1760385033080,-500.0,0.00028188,2]
[391133516,1760385033090,-500.0,0.00028188,2]
[391133518,1760385033099,-500.0,0.00028188,2]
[391133520,1760385033109,-500.0,0.00028188,2]
[391133522,1760385033119,-500.0,0.00028188,2]
[391133524,1760385033127,-596.25827056,0.00028188,2]
[391133526,1760385033136,-499.99999999,0.00028188,2]
[391133528,1760385033146,-500.0,0.00028188,60]
[391133530,1760385033155,-500.0,0.00028188,60]
[391133532,1760385033165,-500.0,0.00028188,60]
[391133534,1760385033174,-500.0,0.00028188,60]
[391133536,1760385033184,-500.0,0.00028188,60]
[391133538,1760385033193,-500.0,0.00028188,60]
[391133540,1760385033204,-500.0,0.00028188,60]
[391133542,1760385033214,-237.0,0.00028188,60]
[391133543,1760385033223,-500.0,0.00028188,2]
[391133545,1760385033232,-150.0,0.00028188,2]
[391133547,1760385033242,-150.0,0.00028188,2]
[391133548,1760385033251,-34703.5177,0.00028189,2]
[391133549,1760385033260,-1000.0,0.00028189,2]
[391133550,1760385033270,-1000.0,0.00028189,2]
[391133551,1760385033279,-459.24805892,0.00028189,2]
[391133552,1760385033289,-175.67875447,0.00028189,2]
[391133553,1760385033299,-5000.0,0.00028199,2]
[391133554,1760385033308,-165.27947311,0.00028199,2]
[391133555,1760385033317,-1058.361,0.00028214,120]
[391133556,1760385033327,-1057.552,0.00028214,120]
[391133557,1760385033336,-1000.0,0.00028214,120]
[391133558,1760385033346,-1000.0,0.00028214,120]
[391133559,1760385033354,-1000.0,0.00028214,120]
[391133560,1760385033363,-950.325,0.00028214,120]
[391133561,1760385033372,-1000.0,0.00028214,30]
[391133562,1760385033381,-1000.0,0.00028214,30]
[391133563,1760385033391,-299.754,0.00028214,30]
[391133564,1760385033400,-392.547,0.00028214,90]
[391133565,1760385033409,-500.0,0.00028214,14]
[391133566,1760385033420,-500.0,0.00028214,60]
[391133567,1760385033429,-150.0,0.00028214,2]
[391133568,1760385033439,-203.09520593,0.00028214,60]
[391133569,1760385033449,-500.0,0.00028214,60]
[391133570,1760385033460,-150.0,0.00028214,2]
[391133571,1760385033469,-1065.0,0.00028214,60]
[391133572,1760385033478,-841.4687823,0.0002824,2]
[391133573,1760385033488,-500.0,0.00028243,2]
[391133574,1760385033497,-150.0,0.00028243,2]
[391133575,1760385033507,-150.0,0.00028243,2]
[391133576,1760385033516,-500.0,0.00028269,14]
[391133577,1760385033525,-500.0,0.00028269,60]
[391133578,1760385033535,-500.0,0.00028269,60]
[391133579,1760385033544,-1065.0,0.00028269,60]
[391133580,1760385033553,-169.21960741,0.00028269,2]
[391133581,1760385033562,-537.97714,0.00028269,2]
[391133582,1760385033571,-297.81637227,0.00028273,5]
[391133583,1760385033581,-472.07859674,0.00028273,5]
[391133584,1760385033590,-508.90027563,0.00028273,5]
[391133585,1760385033599,-500.0,0.00028273,5]
[391133586,1760385033608,-500.0,0.00028273,5]
[391133587,1760385033617,-500.0,0.00028273,5]
[391133588,1760385033626,-150.0,0.00028273,5]
[391133589,1760385033635,-150.0,0.00028273,5]
[391133590,1760385033645,-267.54534758,0.00028278,2]
[391133591,1760385033654,-253.47696385,0.00028278,2]
[391133592,1760385033663,-500.0,0.00028278,2]
[391133593,1760385033672,-195.18720543,0.00028278,2]
[391133594,1760385033681,-198.47295673,0.00028278,2]
[391133595,1760385033691,-202.02826475,0.00028278,2]
[391133596,1760385033702,-35441.38496772,0.00028279,3]
[391133597,1760385033715,-28419.51902976,0.00028279,3]
[391133598,1760385033726,-58536.96057452,0.00028279,3]
[391133599,1760385033734,-11913.74082509,0.00028279,3]
[391133600,1760385033745,-19098.54673991,0.00028279,3]
[391133601,1760385033754,-26892.43686764,0.00028279,2]
[391133602,1760385033764,-56829.378197,0.00028282,2]
[391133603,1760385033776,-556.8968615,0.00028282,2]
[391133604,1760385034162,-4490.38909853,0.00028282,2]
[391133605,1760385034177,-964.8307927,0.00028282,2]
[391133606,1760385034188,-3177.20499516,0.00028282,2]
[391133607,1760385034199,-966.09033492,0.00028282,2]
[391133608,1760385034210,-691.40426648,0.00028282,2]
[391133609,1760385034222,-289.96440231,0.00028282,2]
[391133610,1760385034236,-1368.50696115,0.00028282,2]
[391133611,1760385034248,-6692.14069377,0.00028282,2]
[391133612,1760385034258,-1569.01772535,0.00028282,2]
[391133613,1760385034273,-1855.23527814,0.00028282,2]
[391133614,1760385034283,-175.31108874,0.00028287,2]
[391133615,1760385034292,-19333.95363314,0.00028289,3]
[391133616,1760385034304,-574.07038451,0.00028289,3]
[391133617,1760385034315,-5402.90382732,0.00028289,3]
[391133619,1760385038308,-336.73549963,0.00028188,2]
[391133620,1760385038363,-163.26450037,0.00028188,2]
[391133621,1760385038374,-500.0,0.00028243,2]
[391133622,1760385038383,-31942.52612113,0.00028289,3]
[391133623,1760385038392,-52067.44702235,0.00028291,2]
[391133624,1760385038403,-36136.76235615,0.00028291,2]
[391133625,1760385038415,-451.15504761,0.00028291,2]
[391133626,1760385038427,-882.6808005,0.00028291,2]
[391133627,1760385038471,-27899.99942465,0.00028291,2]
[391133628,1760385038579,-5872.45855589,0.00028291,2]
[391133629,1760385038589,-2177.66119407,0.00028291,2]
[391133630,1760385038598,-272.0,0.00028293,2]
[391133631,1760385038608,-584.3702958,0.00028296,2]
[391133632,1760385038617,-500.0,0.00028298,2]
[391133633,1760385038626,-150.0,0.00028298,2]
[391133634,1760385038635,-200.0,0.00028298,2]
[391133635,1760385038644,-500.0,0.00028298,2]
[391133636,1760385038653,-1000.0,0.00028298,15]
[391133637,1760385038663,-1000.0,0.00028298,15]
[391133638,1760385038672,-1000.0,0.00028298,15]
[391133639,1760385038681,-1000.0,0.00028298,15]
[391133641,1760385038690,-572.92941166,0.00028298,15]
[391133643,1760385038699,-150.0,0.00028298,20]
[391133645,1760385038708,-377.0,0.00028299,5]
[391133647,1760385038719,-2867.59145584,0.00028299,2]
[391133649,1760385038731,-544.38170658,0.00028299,2]
[391133651,1760385038742,-1794.435,0.00028299,2]
[391133743,1760385041546,-619.09142122,0.00028188,2]
[391133744,1760385041557,-27.34720408,0.00028188,2]
[391133745,1760385041566,-1739.35313891,0.00028299,2]
[391133746,1760385041581,-974.48338857,0.00028299,2]
[391133747,1760385041594,-1507.74,0.00028299,2]
[391133748,1760385041605,-12179.0,0.00028299,2]
[391133749,1760385041616,-672.66563398,0.00028299,2]
[391133750,1760385041627,-17639.73819487,0.00028299,2]
[391133751,1760385041638,-3951.2,0.00028299,2]
[391133752,1760385041648,-590.62725335,0.00028299,2]
[391133753,1760385041659,-395.92311807,0.00028299,2]
[391133770,1760385046425,-381.61958649,0.00024144,2]
[391133771,1760385046435,-5421.77505265,0.00028299,2]
[391133772,1760385046447,-662.39715246,0.00028299,2]
[391133773,1760385046459,-1450.09000779,0.00028299,2]
[391133774,1760385046567,-264.57538388,0.00028299,2]
[391133821,1760385062060,2500.0,0.00027336,120]
[391133842,1760385624470,1500.0,0.0002675,120]
[391133856,1760386007511,-160.75,0.00013393,2]
[391133859,1760386016713,-156.25,0.00013498,2]
[391133891,1760386231596,-175.35879412,0.00014211,2]
[391133892,1760386231606,-606.60184842,0.0001431,2]
[391133893,1760386231618,-593.39815158,0.0001431,2]
[391133894,1760386231627,-160.75,0.00015067,2]
[391133895,1760386231637,-160.75,0.00016741,2]
[391133896,1760386231647,-98.49699355,0.000176,2]
[391133897,1760386231659,-92.3080266,0.000176,2]
[391133898,1760386231668,-160.75,0.00018415,2]
[391133899,1760386231678,-160.75,0.00020089,2]
[391133900,1760386231687,-3782.09655715,0.000217,5]
[391133901,1760386231699,-84.90344285,0.000217,5]
[391133902,1760386231709,-160.75,0.00021763,2]
[391133903,1760386231718,-160.75,0.00023437,2]
[391133904,1760386231727,-500.0,0.00024932,2]
[391133905,1760386231736,-160.75,0.00025112,2]
[391133906,1760386231746,-166.66,0.000257,30]
[391133907,1760386231755,-200.0,0.00025837,2]
[391133908,1760386231765,-829.55,0.00025891,30]
[391133909,1760386231774,-1095.54774777,0.00026038,2]
[391133910,1760386231786,-750.0,0.00026038,2]
[391133911,1760386231798,-3154.45225223,0.00026038,2]
[391133912,1760386231808,-166.66,0.00026241,30]
[391133913,1760386231818,-500.0,0.00026365,2]
[391133914,1760386231827,-500.0,0.00026365,2]
[391133915,1760386231837,-500.0,0.00026365,2]
[391133916,1760386231847,-476.06774779,0.00026365,2]
[391133917,1760386231858,-23.93225221,0.00026365,2]
[391133918,1760386231868,-303.84774769,0.00026365,2]
[391133919,1760386231884,-196.15225231,0.00026365,2]
[391133920,1760386231893,-500.0,0.00026365,2]
[391133921,1760386231904,-169.78128393,0.00026365,2]
[391133922,1760386231914,-500.0,0.00026365,2]
[391133923,1760386231923,-1362.16441072,0.00026366,7]
[391134042,1760386237626,-14046.39738317,0.00026366,7]
[391134043,1760386237638,-38014.9999991,0.00026366,7]
[391134044,1760386237650,-14278.31820701,0.00026366,7]
[391134045,1760386237659,-150.0,0.00026729,4]
[391134046,1760386237669,-150.0,0.00026729,4]
[391134047,1760386237678,-266.4438225,0.00026729,4]
[391134048,1760386237687,-150.0,0.00026729,4]
[391134049,1760386237697,-166.66,0.00026782,30]
[391134050,1760386237706,-160.75,0.00026786,2]
[391134052,1760386237719,-9552.16786547,0.00026828,2]
[391134054,1760386237729,-1425.37603502,0.00026883,2]
[391134226,1760386239453,-690.26456955,0.00026883,2]
[391134233,1760386239508,-7789.95747193,0.00026883,2]
[391134235,1760386239518,-250.0,0.00026895,7]
[391134237,1760386239527,-600.0,0.00026922,2]
[391134239,1760386239537,-414.34100669,0.00026922,2]
[391134241,1760386239546,-1500.0,0.00026922,2]
[391134243,1760386239556,-151.0,0.00026922,2]
[391134245,1760386239566,-151.0,0.00026922,2]
[391134247,1760386239575,-151.0,0.00026922,2]
[391134249,1760386239584,-151.0,0.00026922,2]
[391134251,1760386239593,-151.0,0.00026922,2]
[391134253,1760386239603,-151.0,0.00026922,2]
[391134255,1760386239612,-151.0,0.00026922,2]
[391134257,1760386239622,-151.0,0.00026922,2]
[391134259,1760386239631,-500.0,0.00026922,2]
[391134261,1760386239640,-151.0,0.00026922,2]
[391134263,1760386239650,-595.97346657,0.00026922,2]
[391134265,1760386239659,-151.0,0.00026922,2]
[391134267,1760386239668,-151.0,0.00026922,2]
[391134269,1760386239677,-151.0,0.00026922,2]
[391134271,1760386239686,-151.0,0.00026922,2]
[391134273,1760386239695,-151.0,0.00026922,2]
[391134275,1760386239705,-2000.0,0.00026922,2]
[391134277,1760386239714,-2000.0,0.00026922,2]
[391134279,1760386239723,-1575.20470863,0.00026922,2]
[391134281,1760386239732,-10272.10520533,0.00026938,2]
[391134283,1760386239742,-1393.88035062,0.00026993,2]
[391134285,1760386239751,-802.0,0.00027,2]
[391134286,1760386239760,-156.0,0.00027,7]
[391134287,1760386239769,-535.07,0.00027293,2]
[391134288,1760386239778,-166.66,0.00027323,30]
[391134289,1760386239787,-515.05,0.00027357,2]
[391134290,1760386239796,-249.57307928,0.00027498,7]
[391134291,1760386239804,-374.35961895,0.00027498,7]
[391134292,1760386239813,-311.96634913,0.00027498,7]
[391134294,1760386239822,-207.97756609,0.00027498,7]
[391134295,1760386239831,-228.7753227,0.00027498,7]
[391134296,1760386239840,-249.57307931,0.00027498,7]
[391134297,1760386239849,-270.37083592,0.00027498,7]
[391134298,1760386239858,-291.16859253,0.00027498,7]
[391134300,1760386239867,-332.76410575,0.00027498,7]
[391134302,1760386239877,-353.56186236,0.00027498,7]
[391134304,1760386239886,-311.96634914,0.00027498,7]
[391134306,1760386239896,-156.0,0.00027671,14]
[391134308,1760386239905,-532.59,0.00027745,2]
[391134310,1760386239914,-300.0,0.000278,10]
[391134312,1760386239923,-166.66,0.00027864,30]
[391134314,1760386239932,-1310.125,0.00027894,18]
[391134316,1760386239941,-600.0,0.000279,10]
[391134318,1760386239950,-175.67875445,0.0002792,2]
[391134320,1760386239960,-168.0,0.00027967,2]
[391134322,1760386239970,-1001.0,0.00028,5]
[391134324,1760386239979,-1000.0,0.00028,4]
[391134326,1760386239989,-1000.0,0.00028,5]
[391134328,1760386239999,-1000.0,0.00028,4]
[391134330,1760386240008,-4957.41098952,0.00028,2]
[391134332,1760386240017,-441.07999998,0.0002802,2]
[391134334,1760386240026,-1000.0,0.00028027,2]
[391134336,1760386240035,-200.0,0.00028073,2]
[391134338,1760386240045,-1000.0,0.000281,9]
[391134340,1760386240054,-1000.0,0.000281,9]
[391134342,1760386240064,-1024.0,0.000281,8]
[391134344,1760386240073,-1000.0,0.000281,8]
[391134346,1760386240082,-1000.0,0.000281,7]
[391134348,1760386240092,-1000.0,0.000281,7]
[391134350,1760386240104,-1000.0,0.000281,6]
[391134352,1760386240113,-1000.0,0.000281,6]
[391134354,1760386240122,-1000.0,0.000281,6]
[391134356,1760386240132,-300.0,0.00028152,2]
[391134358,1760386240142,-1406.03671488,0.00028162,2]
[391134360,1760386240151,-1960.42303502,0.00028169,2]
[391134362,1760386240160,-4957.41098945,0.00028188,2]
[391134365,1760386240174,-253.88370344,0.00028188,2]
[391134367,1760386240184,-1000.0,0.00028188,2]
[391134369,1760386240194,-2500.0,0.00028188,2]
[391134371,1760386240205,-5000.0,0.00028189,2]
[391134373,1760386240214,-529.58,0.00028193,2]
[391134375,1760386240224,-2226.27796562,0.00028197,2]
[391134377,1760386240234,-161.73205577,0.00028197,2]
[391134379,1760386240244,-211.25666965,0.00028199,2]
[391134381,1760386240254,-166.07596632,0.00028199,2]
[391134383,1760386240263,-221.68791475,0.00028199,2]
[391134385,1760386240273,-1960.42303502,0.00028199,2]
[391134387,1760386240283,-236.0,0.00028225,7]
[391134389,1760386240292,-1406.03671488,0.0002823,2]
[391134391,1760386240302,-1960.42303502,0.00028243,2]
[391134393,1760386240312,-1406.03671488,0.00028246,2]
[391134395,1760386240321,-163.0,0.00028264,120]
[391134397,1760386240331,-154.0,0.00028264,120]
[391134399,1760386240340,-500.0,0.00028273,3]
[391134401,1760386240351,-463.79703866,0.00028273,5]
[391134403,1760386240362,-500.0,0.00028273,5]
[391134405,1760386240373,-500.0,0.00028273,5]
[391134407,1760386240383,-251.85710336,0.00028273,5]
[391134410,1760386240393,-527.92140326,0.00028273,5]
[391134412,1760386240403,-177.43387469,0.00028278,2]
[391134414,1760386240412,-491.41978532,0.00028278,2]
[391134416,1760386240422,-187.2817433,0.00028278,2]
[391134418,1760386240431,-133260.462299,0.00028279,3]
[391134420,1760386240441,-39829.57598209,0.00028288,8]
[391134423,1760386240461,-428.53781818,0.00028288,8]
[391134425,1760386240472,-27366.22727683,0.00028288,8]
[391134427,1760386240486,-789.74352181,0.00028288,8]
[391134430,1760386240497,-12209.566904,0.00028288,8]
[391134668,1760386242694,-295.409636,0.00028288,8]
[391135121,1760386247107,-2079.557506,0.00028288,8]
[391135124,1760386247118,-6836.6039529,0.00028288,8]
[391135126,1760386247129,-2313.89604383,0.00028288,8]
[391135128,1760386247141,-1692.2736255,0.00028288,8]